fUSD/lending_fUSD_20240803
["ID","MTS","AMOUNT","RATE_DAILY","PERIOD"]
[333993245,1722666773104,-544.56,0.00019178,2]
[333993246,1722666773113,-603.96,0.00019178,2]
[333993247,1722666773123,-500.0,0.00019178,2]
[333993248,1722666773132,-494.91512304,0.00019178,2]
[333993249,1722666773141,-500.0,0.00019178,2]
[333993250,1722666773151,-1120.78,0.00019178,2]
[333993251,1722666773160,-794.41,0.00019178,2]
[333993252,1722666773169,-500.0,0.00019178,2]
[333993253,1722666773178,-1111.45,0.00019178,2]
[333993254,1722666773188,-633.16,0.00019178,2]
[333993255,1722666773197,-500.0,0.00019178,2]
[333993256,1722666773207,-554.83623,0.00019178,2]
[333993257,1722666773217,-742.79,0.00019178,2]
[333993258,1722666773226,-500.0,0.00019178,2]
[333993259,1722666773236,-500.0,0.00019178,2]
[333993260,1722666773246,-500.0,0.00019178,2]
[333993261,1722666773256,-500.41,0.00019178,2]
[333993262,1722666773265,-1144.59,0.00019178,2]
[333993263,1722666773275,-591.2,0.00019178,2]
[333993264,1722666773285,-500.0,0.00019178,2]
[333993265,1722666773294,-500.0,0.00019178,2]
[333993266,1722666773304,-500.0,0.00019178,2]
[333993267,1722666773314,-500.0,0.00019178,2]
[333993268,1722666773323,-500.0,0.00019178,2]
[333993269,1722666773333,-667.95,0.00019178,2]
[333993270,1722666773342,-500.0,0.00019178,2]
[333993271,1722666773351,-1017.87,0.00019178,2]
[333993272,1722666773361,-586.31,0.00019178,2]
[333993273,1722666773371,-710.02,0.00019178,2]
[333993274,1722666773380,-1000.0,0.00019178,2]
[333993275,1722666773390,-1000.0,0.00019178,2]
[333993276,1722666773399,-1000.0,0.00019178,2]
[333993277,1722666773409,-1000.0,0.00019178,2]
[333993278,1722666773418,-1000.0,0.00019178,2]
[333993279,1722666773428,-1000.0,0.00019178,2]
[333993280,1722666773438,-500.0,0.00019178,2]
[333993281,1722666773447,-825.98963594,0.00019178,2]
[333993282,1722666773456,-1326.03,0.00019178,2]
[333993283,1722666773466,-628.24,0.00019178,2]
[333993284,1722666773475,-689.07,0.00019178,2]
[333993285,1722666773485,-500.0,0.00019178,2]
[333993286,1722666773494,-554.01,0.00019178,2]
[333993287,1722666773506,-500.0,0.00019178,2]
[333993288,1722666773516,-835.2,0.00019178,2]
[333993289,1722666773525,-500.0,0.00019178,2]
[333993290,1722666773536,-500.0,0.00019178,2]
[333993291,1722666773546,-541.45,0.00019178,2]
[333993292,1722666773555,-500.0,0.00019178,2]
[333993293,1722666773564,-500.0,0.00019178,2]
[333993294,1722666773574,-1060.7,0.00019178,2]
[333993295,1722666773583,-561.25,0.00019178,2]
[333993296,1722666773593,-573.22,0.00019178,2]
[333993297,1722666773602,-500.0,0.00019178,2]
[333993298,1722666773611,-500.0,0.00019178,2]
[333993299,1722666773620,-686.47,0.00019178,2]
[333993300,1722666773630,-1223.77,0.00019178,2]
[333993301,1722666773640,-536.51,0.00019178,2]
[333993302,1722666773650,-500.0,0.00019178,2]
[333993303,1722666773663,-500.0,0.00019178,2]
[333993304,1722666773673,-500.0,0.00019178,2]
[333993305,1722666773682,-500.0,0.00019178,2]
[333993306,1722666773691,-1013.66,0.00019178,2]
[333993307,1722666773701,-500.0,0.00019178,2]
[333993308,1722666773712,-581.73,0.00019178,2]
[333993309,1722666773722,-576.72635894,0.00019178,2]
[333993310,1722666773732,-500.0,0.00019178,2]
[333993311,1722666773743,-500.0,0.00019178,2]
[333993312,1722666773754,-818.75,0.00019178,2]
[333993313,1722666773764,-500.0,0.00019178,2]
[333993314,1722666773774,-500.0,0.00019178,2]
[333993315,1722666773784,-500.0,0.00019178,2]
[333993316,1722666773794,-500.0,0.00019178,2]
[333993317,1722666773803,-500.0,0.00019178,2]
[333993318,1722666773812,-500.0,0.00019178,2]
[333993319,1722666773822,-500.0,0.00019178,2]
[333993320,1722666773831,-238.17361648,0.00019178,2]
[333993321,1722666773840,-500.0,0.00019178,2]
[333993322,1722666773851,-899.56,0.00019178,2]
[333993323,1722666773862,-1080.66,0.00019178,2]
[333993324,1722666773872,-547.43117012,0.00019178,2]
[333993325,1722666773882,-500.0,0.00019178,2]
[333993326,1722666773891,-500.0,0.00019178,2]
[333993327,1722666773900,-713.4,0.00019178,2]
[333993328,1722666773910,-500.0,0.00019178,2]
[333993329,1722666773919,-513.0,0.00019178,2]
[333993330,1722666773928,-1040.19,0.00019178,2]
[333993331,1722666773938,-500.0,0.00019178,2]
[333993332,1722666773948,-992.68,0.00019178,2]
[333993333,1722666774285,-521.61,0.00019178,2]
[333993334,1722666774295,-577.74,0.00019178,2]
[333993335,1722666774304,-500.0,0.00019178,2]
[333993336,1722666774314,-645.01,0.00019178,2]
[333993337,1722666774324,-500.0,0.00019178,2]
[333993338,1722666774335,-500.0,0.00019178,2]
[333993339,1722666774344,-500.0,0.00019178,2]
[333993340,1722666774356,-775.07,0.00019178,2]
[333993341,1722666774367,-500.0,0.00019178,2]
[333993342,1722666774377,-500.0,0.00019178,2]
[333993343,1722666774387,-968.44,0.00019178,2]
[333993344,1722666774397,-647.32776229,0.00019178,2]
[333993345,1722666774407,-1060.45,0.00019178,2]
[333993346,1722666774417,-500.0,0.00019178,2]
[333993347,1722666774428,-925.11,0.00019178,2]
[333993348,1722666774438,-500.0,0.00019178,2]
[333993349,1722666774449,-889.34,0.00019178,2]
[333993350,1722666774458,-500.0,0.00019178,2]
[333993351,1722666774469,-500.0,0.00019178,2]
[333993352,1722666774479,-500.0,0.00019178,2]
[333993353,1722666774489,-593.73,0.00019178,2]
[333993354,1722666774499,-500.0,0.00019178,2]
[333993355,1722666774510,-500.0,0.00019178,2]
[333993356,1722666774520,-500.0,0.00019178,2]
[333993357,1722666774530,-500.0,0.00019178,2]
[333993358,1722666774539,-637.94,0.00019178,2]
[333993359,1722666774549,-1442.56,0.00019178,2]
[333993360,1722666774558,-720.84,0.00019178,2]
[333993361,1722666774568,-500.0,0.00019178,2]
[333993362,1722666774577,-997.26,0.00019178,2]
[333993363,1722666774587,-600.01,0.00019178,2]
[333993364,1722666774596,-959.37,0.00019178,2]
[333993365,1722666774606,-500.0,0.00019178,2]
[333993366,1722666774615,-590.48,0.00019178,2]
[333993367,1722666774625,-539.49,0.00019178,2]
[333993368,1722666774634,-1113.83,0.00019178,2]
[333993369,1722666774644,-500.0,0.00019178,2]
[333993370,1722666774654,-500.0,0.00019178,2]
[333993371,1722666774668,-500.0,0.00019178,2]
[333993372,1722666774677,-646.00016728,0.00019178,2]
[333993373,1722666774687,-663.54,0.00019178,2]
[333993374,1722666774697,-500.0,0.00019178,2]
[333993375,1722666774707,-500.0,0.00019178,2]
[333993376,1722666774717,-668.52,0.00019178,2]
[333993377,1722666774728,-500.0,0.00019178,2]
[333993378,1722666774740,-1284.57,0.00019178,2]
[333993379,1722666774751,-500.0,0.00019178,2]
[333993380,1722666774760,-729.2,0.00019178,2]
[333993381,1722666774770,-500.0,0.00019178,2]
[333993382,1722666774780,-1148.49,0.00019178,2]
[333993383,1722666774790,-650.33,0.00019178,2]
[333993384,1722666774800,-527.89,0.00019178,2]
[333993385,1722666774810,-1657.53,0.00019178,2]
[333993386,1722666774819,-643.1,0.00019178,2]
[333993387,1722666774830,-691.5,0.00019178,2]
[333993388,1722666774842,-1385.68,0.00019178,2]
[333993389,1722666774852,-534.08,0.00019178,2]
[333993390,1722666774861,-500.0,0.00019178,2]
[333993391,1722666774872,-923.84,0.00019178,2]
[333993392,1722666774881,-1314.98,0.00019178,2]
[333993393,1722666774891,-891.69,0.00019178,2]
[333993394,1722666774900,-1413.97,0.00019178,2]
[333993395,1722666774911,-518.53,0.00019178,2]
[333993396,1722666774923,-500.0,0.00019178,2]
[333993397,1722666774935,-1485.86,0.00019178,2]
[333993398,1722666774948,-679.92,0.00019178,2]
[333993399,1722666774960,-500.0,0.00019178,2]
[333993400,1722666774970,-500.0,0.00019178,2]
[333993401,1722666774980,-1833.06,0.00019178,2]
[333993402,1722666774990,-528.86,0.00019178,2]
[333993403,1722666775000,-1392.35,0.00019178,2]
[333993404,1722666775010,-557.98,0.00019178,2]
[333993405,1722666775019,-500.0,0.00019178,2]
[333993406,1722666775029,-500.0,0.00019178,2]
[333993407,1722666775038,-1735.04,0.00019178,2]
[333993408,1722666775049,-1099.4,0.00019178,2]
[333993409,1722666775059,-500.0,0.00019178,2]
[333993410,1722666775069,-516.73,0.00019178,2]
[333993411,1722666775079,-505.74,0.00019178,2]
[333993412,1722666775089,-587.0,0.00019178,2]
[333993413,1722666775098,-563.21,0.00019178,2]
[333993414,1722666775107,-540.15,0.00019178,2]
[333993415,1722666775118,-500.0,0.00019178,2]
[333993416,1722666775128,-866.45,0.00019178,2]
[333993417,1722666775138,-500.0,0.00019178,2]
[333993418,1722666775148,-647.2,0.00019178,2]
[333993419,1722666775159,-500.0,0.00019178,2]
[333993420,1722666775170,-1057.56,0.00019178,2]
[333993421,1722666775179,-500.0,0.00019178,2]
[333993422,1722666775188,-554.21,0.00019178,2]
[333993423,1722666775198,-1267.48,0.00019178,2]
[333993424,1722666775207,-500.0,0.00019178,2]
[333993425,1722666775217,-1285.81,0.00019178,2]
[333993426,1722666775226,-1985.89,0.00019178,2]
[333993427,1722666775236,-500.0,0.00019178,2]
[333993428,1722666775245,-500.0,0.00019178,2]
[333993429,1722666775258,-770.94,0.00019178,2]
[333993430,1722666775268,-648.16,0.00019178,2]
[333993431,1722666775277,-1048.81,0.00019178,2]
[333993432,1722666775287,-500.0,0.00019178,2]
[333993433,1722666775296,-1630.37,0.00019178,2]
[333993434,1722666775306,-500.0,0.00019178,2]
[333993435,1722666775316,-942.02,0.00019178,2]
[333993436,1722666775326,-500.0,0.00019178,2]
[333993437,1722666775336,-500.0,0.00019178,2]
[333993438,1722666775345,-500.0,0.00019178,2]
[333993439,1722666775355,-702.76,0.00019178,2]
[333993440,1722666775366,-500.0,0.00019178,2]
[333993441,1722666775376,-500.0,0.00019178,2]
[333993442,1722666775386,-500.0,0.00019178,2]
[333993443,1722666775396,-1612.19,0.00019178,2]
[333993444,1722666775406,-500.0,0.00019178,2]
[333993445,1722666775415,-1146.11,0.00019178,2]
[333993446,1722666775425,-764.88,0.00019178,2]
[333993447,1722666775435,-500.0,0.00019178,2]
[333993448,1722666775445,-1869.99,0.00019178,2]
[333993449,1722666775455,-500.0,0.00019178,2]
[333993450,1722666775464,-1937.58,0.00019178,2]
[333993451,1722666775474,-1092.19,0.00019178,2]
[333993452,1722666775484,-500.0,0.00019178,2]
[333993453,1722666775493,-1144.97,0.00019178,2]
[333993454,1722666775503,-1286.39,0.00019178,2]
[333993455,1722666775513,-500.0,0.00019178,2]
[333993456,1722666775523,-1257.28,0.00019178,2]
[333993457,1722666775532,-575.74,0.00019178,2]
[333993458,1722666775542,-500.0,0.00019178,2]
[333993459,1722666775551,-500.0,0.00019178,2]
[333993460,1722666775561,-790.36,0.00019178,2]
[333993461,1722666775571,-1056.65,0.00019178,2]
[333993462,1722666775580,-682.23,0.00019178,2]
[333993463,1722666775590,-831.9,0.00019178,2]
[333993464,1722666775600,-1274.51,0.00019178,2]
[333993465,1722666775609,-971.42,0.00019178,2]
[333993466,1722666775619,-1312.76,0.00019178,2]
[333993467,1722666775629,-500.0,0.00019178,2]
[333993468,1722666775638,-500.0,0.00019178,2]
[333993469,1722666775648,-500.0,0.00019178,2]
[333993470,1722666775658,-500.0,0.00019178,2]
[333993471,1722666775670,-500.0,0.00019178,2]
[333993472,1722666775680,-500.0,0.00019178,2]
[333993473,1722666775689,-1074.3,0.00019178,2]
[333993474,1722666775699,-500.0,0.00019178,2]
[333993475,1722666775710,-634.32,0.00019178,2]
[333993476,1722666775720,-500.0,0.00019178,2]
[333993477,1722666775730,-564.14,0.00019178,2]
[333993478,1722666775741,-786.52,0.00019178,2]
[333993479,1722666775750,-500.0,0.00019178,2]
[333993480,1722666775760,-500.0,0.00019178,2]
[333993481,1722666775769,-500.0,0.00019178,2]
[333993482,1722666775778,-1029.12,0.00019178,2]
[333993483,1722666775788,-837.07,0.00019178,2]
[333993484,1722666775797,-500.0,0.00019178,2]
[333993485,1722666775806,-1796.88,0.00019178,2]
[333993486,1722666775815,-500.0,0.00019178,2]
[333993487,1722666775824,-1732.55,0.00019178,2]
[333993488,1722666775834,-500.0,0.00019178,2]
[333993489,1722666775845,-1573.42,0.00019178,2]
[333993490,1722666775855,-500.0,0.00019178,2]
[333993491,1722666775867,-854.91,0.00019178,2]
[333993492,1722666775876,-1076.12,0.00019178,2]
[333993493,1722666775886,-500.0,0.00019178,2]
[333993494,1722666775895,-500.0,0.00019178,2]
[333993495,1722666775905,-737.63,0.00019178,2]
[333993496,1722666775915,-1711.13,0.00019178,2]
[333993497,1722666775925,-500.0,0.00019178,2]
[333993498,1722666775934,-500.0,0.00019178,2]
[333993499,1722666775943,-500.0,0.00019178,2]
[333993500,1722666775954,-599.32,0.00019178,2]
[333993501,1722666775963,-500.0,0.00019178,2]
[333993502,1722666775973,-1490.49,0.00019178,2]
[333993503,1722666775983,-686.99,0.00019178,2]
[333993504,1722666775992,-941.41,0.00019178,2]
[333993505,1722666776002,-500.0,0.00019178,2]
[333993506,1722666776011,-683.87,0.00019178,2]
[333993507,1722666776020,-925.99,0.00019178,2]
[333993508,1722666776030,-500.0,0.00019178,2]
[333993509,1722666776040,-518.33,0.00019178,2]
[333993510,1722666776049,-1190.09,0.00019178,2]
[333993511,1722666776059,-500.0,0.00019178,2]
[333993512,1722666776069,-525.83885421,0.00019178,2]
[333993513,1722666776078,-500.0,0.00019178,2]
[333993514,1722666776088,-775.59,0.00019178,2]
[333993515,1722666776097,-500.0,0.00019178,2]
[333993516,1722666776107,-850.78,0.00019178,2]
[333993517,1722666776116,-500.0,0.00019178,2]
[333993518,1722666776126,-1249.02,0.00019178,2]
[333993519,1722666776135,-1150.61,0.00019178,2]
[333993520,1722666776146,-1183.94,0.00019178,2]
[333993521,1722666776157,-500.0,0.00019178,2]
[333993522,1722666776168,-500.0,0.00019178,2]
[333993523,1722666776177,-714.61,0.00019178,2]
[333993524,1722666776187,-500.0,0.00019178,2]
[333993525,1722666776196,-619.81,0.00019178,2]
[333993526,1722666776205,-1412.03,0.00019178,2]
[333993527,1722666776215,-557.22,0.00019178,2]
[333993528,1722666776224,-500.0,0.00019178,2]
[333993529,1722666776234,-500.0,0.00019178,2]
[333993530,1722666776244,-901.04,0.00019178,2]
[333993531,1722666776253,-1245.11,0.00019178,2]
[333993532,1722666776263,-1551.65,0.00019178,2]
[333993533,1722666776273,-829.01,0.00019178,2]
[333993534,1722666776283,-563.09,0.00019178,2]
[333993535,1722666776292,-523.94,0.00019178,2]
[333993536,1722666776303,-1086.27,0.00019178,2]
[333993537,1722666776313,-554.91,0.00019178,2]
[333993538,1722666776323,-500.0,0.00019178,2]
[333993539,1722666776333,-539.27698263,0.00019178,2]
[333993540,1722666776342,-500.0,0.00019178,2]
[333993541,1722666776353,-1346.52,0.00019178,2]
[333993542,1722666776362,-1087.56,0.00019178,2]
[333993543,1722666776372,-1404.5,0.00019178,2]
[333993544,1722666776382,-500.0,0.00019178,2]
[333993545,1722666776392,-500.0,0.00019178,2]
[333993546,1722666776401,-783.81,0.00019178,2]
[333993547,1722666776411,-500.0,0.00019178,2]
[333993548,1722666776421,-1999.59,0.00019178,2]
[333993549,1722666776432,-500.0,0.00019178,2]
[333993550,1722666776445,-669.89,0.00019178,2]
[333993551,1722666776455,-500.0,0.00019178,2]
[333993552,1722666776467,-500.0,0.00019178,2]
[333993553,1722666776477,-791.15,0.00019178,2]
[333993554,1722666776487,-1652.52,0.00019178,2]
[333993555,1722666776497,-936.75,0.00019178,2]
[333993556,1722666776506,-1126.33,0.00019178,2]
[333993557,1722666776516,-500.0,0.00019178,2]
[333993558,1722666776526,-500.0,0.00019178,2]
[333993559,1722666776536,-1115.3,0.00019178,2]
[333993560,1722666776546,-1818.33,0.00019178,2]
[333993561,1722666776556,-621.62,0.00019178,2]
[333993562,1722666776566,-500.0,0.00019178,2]
[333993563,1722666776575,-814.86,0.00019178,2]
[333993564,1722666776585,-500.0,0.00019178,2]
[333993565,1722666776595,-764.75,0.00019178,2]
[333993566,1722666776604,-721.8,0.00019178,2]
[333993567,1722666776614,-500.0,0.00019178,2]
[333993568,1722666776624,-1488.46,0.00019178,2]
[333993569,1722666776633,-500.0,0.00019178,2]
[333993570,1722666776643,-500.0,0.00019178,2]
[333993571,1722666776653,-1556.25,0.00019178,2]
[333993572,1722666776666,-523.0576654,0.00019178,2]
[333993573,1722666776676,-500.0,0.00019178,2]
[333993574,1722666776686,-930.37,0.00019178,2]
[333993575,1722666776696,-1099.96,0.00019178,2]
[333993576,1722666776820,-541.23,0.00019178,2]
[333993577,1722666776833,-862.02,0.00019178,2]
[333993578,1722666776845,-782.39,0.00019178,2]
[333993579,1722666776855,-665.68,0.00019178,2]
[333993580,1722666776866,-500.0,0.00019178,2]
[333993581,1722666776876,-500.0,0.00019178,2]
[333993582,1722666776886,-500.0,0.00019178,2]
[333993583,1722666776895,-660.12,0.00019178,2]
[333993584,1722666776904,-708.64,0.00019178,2]
[333993585,1722666776914,-500.0,0.00019178,2]
[333993586,1722666776923,-709.52,0.00019178,2]
[333993587,1722666776932,-500.0,0.00019178,2]
[333993588,1722666776941,-500.0,0.00019178,2]
[333993589,1722666776950,-681.92,0.00019178,2]
[333993590,1722666776959,-510.64,0.00019178,2]
[333993591,1722666776969,-500.0,0.00019178,2]
[333993592,1722666776978,-500.0,0.00019178,2]
[333993593,1722666776987,-1423.39,0.00019178,2]
[333993594,1722666776996,-500.0,0.00019178,2]
[333993595,1722666777005,-500.0,0.00019178,2]
[333993596,1722666777015,-3672.91,0.00019178,2]
[333993597,1722666777024,-796.7,0.00019178,2]
[333993598,1722666777034,-500.0,0.00019178,2]
[333993599,1722666777045,-714.52,0.00019178,2]
[333993600,1722666777055,-2042.73,0.00019178,2]
[333993601,1722666777064,-500.0,0.00019178,2]
[333993602,1722666777073,-552.5,0.00019178,2]
[333993603,1722666777084,-1054.46,0.00019178,2]
[333993604,1722666777095,-2805.89,0.00019178,2]
[333993605,1722666777106,-675.88,0.00019178,2]
[333993606,1722666777118,-1088.81,0.00019178,2]
[333993607,1722666777129,-500.0,0.00019178,2]
[333993608,1722666777140,-1433.51,0.00019178,2]
[333993609,1722666777151,-4007.83,0.00019178,2]
[333993610,1722666777161,-762.84,0.00019178,2]
[333993611,1722666777171,-3217.66,0.00019178,2]
[333993612,1722666777181,-500.0,0.00019178,2]
[333993613,1722666777190,-500.0,0.00019178,2]
[333993614,1722666777199,-2200.75,0.00019178,2]
[333993615,1722666777208,-951.76,0.00019178,2]
[333993616,1722666777217,-1702.58,0.00019178,2]
[333993617,1722666777227,-2092.77,0.00019178,2]
[333993618,1722666777236,-652.04,0.00019178,2]
[333993619,1722666777246,-500.0,0.00019178,2]
[333993620,1722666777255,-5244.42,0.00019178,2]
[333993621,1722666777265,-500.0,0.00019178,2]
[333993622,1722666777274,-693.09,0.00019178,2]
[333993623,1722666777284,-761.36,0.00019178,2]
[333993624,1722666777293,-2061.72,0.00019178,2]
[333993625,1722666777302,-2038.36,0.00019178,2]
[333993626,1722666777313,-4346.28,0.00019178,2]
[333993627,1722666777323,-1475.27,0.00019178,2]
[333993628,1722666777332,-710.45,0.00019178,2]
[333993629,1722666777341,-744.05,0.00019178,2]
[333993630,1722666777351,-1223.68,0.00019178,2]
[333993631,1722666777362,-1359.7,0.00019178,2]
[333993632,1722666777371,-640.67708472,0.00019178,2]
[333993633,1722666777381,-4500.27,0.00019178,2]
[333993634,1722666777390,-11630.47,0.00019178,2]
[333993635,1722666777400,-1729.93,0.00019178,2]
[333993636,1722666777409,-842.12,0.00019178,2]
[333993637,1722666777419,-1992.28,0.00019178,2]
[333993638,1722666777428,-7815.4,0.00019178,2]
[333993639,1722666777439,-500.0,0.00019178,2]
[333993640,1722666777448,-872.75,0.00019178,2]
[333993641,1722666777458,-1230.65,0.00019178,2]
[333993642,1722666777467,-1652.65,0.00019178,2]
[333993643,1722666777476,-1417.26,0.00019178,2]
[333993644,1722666777485,-24317.71,0.00019178,2]
[333993645,1722666777494,-500.0,0.00019178,2]
[333993646,1722666777504,-1381.62,0.00019178,2]
[333993647,1722666777514,-8359.0,0.00019178,2]
[333993648,1722666777523,-500.0,0.00019178,2]
[333993649,1722666777533,-2959.52,0.00019178,2]
[333993650,1722666777542,-1125.68,0.00019178,2]
[333993651,1722666777552,-2625.72,0.00019178,2]
[333993652,1722666777561,-500.0,0.00019178,2]
[333993653,1722666777570,-541.08,0.00019178,2]
[333993654,1722666777580,-1606.59,0.00019178,2]
[333993655,1722666777590,-4129.44,0.00019178,2]
[333993656,1722666777599,-765.03,0.00019178,2]
[333993657,1722666777608,-500.0,0.00019178,2]
[333993658,1722666777618,-1071.89,0.00019178,2]
[333993659,1722666777627,-8009.82,0.00019178,2]
[333993660,1722666777636,-500.0,0.00019178,2]
[333993661,1722666777646,-500.0,0.00019178,2]
[333993662,1722666777656,-4309.68,0.00019178,2]
[333993663,1722666777670,-677.22,0.00019178,2]
[333993664,1722666777679,-591.28191919,0.00019178,2]
[333993665,1722666777689,-500.0,0.00019178,2]
[333993666,1722666777699,-3498.32,0.00019178,2]
[333993667,1722666777709,-1008.21,0.00019178,2]
[333993668,1722666777719,-500.0,0.00019178,2]
[333993669,1722666777729,-678.45,0.00019178,2]
[333993670,1722666777740,-2091.29,0.00019178,2]
[333993671,1722666777750,-3261.4,0.00019178,2]
[333993672,1722666777759,-2329.21,0.00019178,2]
[333993673,1722666777768,-1982.62,0.00019178,2]
[333993674,1722666777778,-6585.94,0.00019178,2]
[333993675,1722666777787,-532.0,0.00019178,2]
[333993676,1722666777797,-2347.25,0.00019178,2]
[333993677,1722666777806,-595.79,0.00019178,2]
[333993678,1722666777815,-1438.93,0.00019178,2]
[333993679,1722666777825,-353.83026292,0.00019178,2]
[333993680,1722666777834,-1558.03,0.00019178,2]
[333993681,1722666777843,-12013.62,0.00019178,2]
[333993682,1722666777852,-3194.48,0.00019178,2]
[333993683,1722666777862,-3237.49,0.00019178,2]
[333993684,1722666777872,-1245.88,0.00019178,2]
[333993685,1722666777881,-869.05,0.00019178,2]
[333993686,1722666777891,-500.0,0.00019178,2]
[333993687,1722666777900,-3558.7,0.00019178,2]
[333993688,1722666777909,-1516.63,0.00019178,2]
[333993689,1722666777919,-2240.39,0.00019178,2]
[333993690,1722666777935,-2444.23,0.00019178,2]
[333993691,1722666777945,-4848.71,0.00019178,2]
[333993692,1722666777956,-1275.84,0.00019178,2]
[333993693,1722666777966,-2528.58,0.00019178,2]
[333993694,1722666777978,-7111.63,0.00019178,2]
[333993695,1722666777987,-1234.51,0.00019178,2]
[333993696,1722666777998,-1577.42,0.00019178,2]
[333993697,1722666778009,-500.0,0.00019178,2]
[333993698,1722666778019,-3976.74,0.00019178,2]
[333993699,1722666778030,-914.84,0.00019178,2]
[333993700,1722666778040,-1179.29,0.00019178,2]
[333993701,1722666778050,-522.63,0.00019178,2]
[333993702,1722666778059,-2341.98,0.00019178,2]
[333993703,1722666778071,-2827.3,0.00019178,2]
[333993704,1722666778080,-1379.48,0.00019178,2]
[333993705,1722666778089,-13569.7,0.00019178,2]
[333993706,1722666778100,-1254.92,0.00019178,2]
[333993707,1722666778111,-989.03,0.00019178,2]
[333993708,1722666778120,-867.22,0.00019178,2]
[333993709,1722666778131,-1520.15,0.00019178,2]
[333993710,1722666778141,-4544.83,0.00019178,2]
[333993711,1722666778151,-1100.73,0.00019178,2]
[333993712,1722666778163,-797.96,0.00019178,2]
[333993713,1722666778173,-799.61,0.00019178,2]
[333993714,1722666778185,-5638.64,0.00019178,2]
[333993715,1722666778195,-1242.0,0.00019178,2]
[333993716,1722666778204,-500.0,0.00019178,2]
[333993717,1722666778214,-500.0,0.00019178,2]
[333993718,1722666778223,-500.0,0.00019178,2]
[333993719,1722666778233,-941.33,0.00019178,2]
[333993720,1722666778242,-1488.46,0.00019178,2]
[333993721,1722666778252,-560.97,0.00019178,2]
[333993722,1722666778262,-920.3,0.00019178,2]
[333993723,1722666778271,-3017.99,0.00019178,2]
[333993724,1722666778281,-500.0,0.00019178,2]
[333993725,1722666778290,-1976.61,0.00019178,2]
[333993726,1722666778300,-980.35,0.00019178,2]
[333993727,1722666778310,-2347.93,0.00019178,2]
[333993728,1722666778320,-500.0,0.00019178,2]
[333993729,1722666778331,-3028.02,0.00019178,2]
[333993730,1722666778341,-1182.86,0.00019178,2]
[333993731,1722666778351,-663.52,0.00019178,2]
[333993732,1722666778361,-1429.57,0.00019178,2]
[333993733,1722666778373,-1315.97,0.00019178,2]
[333993734,1722666778382,-1009.6,0.00019178,2]
[333993735,1722666778392,-500.0,0.00019178,2]
[333993736,1722666778403,-535.59,0.00019178,2]
[333993737,1722666778413,-1659.64,0.00019178,2]
[333993738,1722666778423,-2820.52,0.00019178,2]
[333993739,1722666778434,-2112.36,0.00019178,2]
[333993740,1722666778444,-4031.55,0.00019178,2]
[333993741,1722666778454,-2096.17,0.00019178,2]
[333993742,1722666778463,-1049.02,0.00019178,2]
[333993743,1722666778473,-10150.27,0.00019178,2]
[333993744,1722666778483,-1206.49,0.00019178,2]